[Event "Early-Titled-Tuesday-Blitz-February-27-2024"]
[Site "Chess.com"]
[Date "2024.02.27"]
[Round "9"]
[White "GHANDEEVAM2003"]
[Black "HansOnTwitch"]
[Result "1/2-1/2"]
[WhiteElo "3048"]
[BlackElo "3157"]
[TimeControl "180+1"]
[EndTime "9:46:31 PST"]
[Termination "Game drawn by repetition"]

1. a3 {[%clk 0:03:00.9]} 1... e5 {[%clk 0:02:55.6]} 2. c4 {[%clk 0:03:00.1]}
2... d6 {[%clk 0:02:49.4]} 3. Nc3 {[%clk 0:02:58]} 3... f5 {[%clk 0:02:46.6]} 4.
b4 {[%clk 0:02:54]} 4... Nf6 {[%clk 0:02:46.4]} 5. g3 {[%clk 0:02:50.1]} 5...
Be7 {[%clk 0:02:44.2]} 6. Bg2 {[%clk 0:02:50.6]} 6... O-O {[%clk 0:02:44]} 7. d3
{[%clk 0:02:49.9]} 7... c6 {[%clk 0:02:44.4]} 8. Nf3 {[%clk 0:02:49.6]} 8... Kh8
{[%clk 0:02:35.1]} 9. O-O {[%clk 0:02:48.3]} 9... Be6 {[%clk 0:02:34.7]} 10. b5
{[%clk 0:02:45.5]} 10... Qc7 {[%clk 0:02:34.7]} 11. Rb1 {[%clk 0:02:39.1]} 11...
Nbd7 {[%clk 0:02:30.2]} 12. a4 {[%clk 0:02:38.9]} 12... d5 {[%clk 0:02:25.5]}
13. bxc6 {[%clk 0:02:28.7]} 13... bxc6 {[%clk 0:02:24.6]} 14. cxd5 {[%clk
0:02:26.2]} 14... cxd5 {[%clk 0:02:25.5]} 15. Nb5 {[%clk 0:02:26.4]} 15... Qd8
{[%clk 0:02:11.8]} 16. d4 {[%clk 0:02:17.7]} 16... e4 {[%clk 0:02:07.8]} 17. Ne5
{[%clk 0:02:15.2]} 17... Nxe5 {[%clk 0:02:07.1]} 18. dxe5 {[%clk 0:02:16.1]}
18... Ng4 {[%clk 0:02:06.6]} 19. Nd4 {[%clk 0:02:02.2]} 19... Qd7 {[%clk
0:02:06.8]} 20. f4 {[%clk 0:02:02.9]} 20... Bc5 {[%clk 0:01:20.7]} 21. h3 {[%clk
0:02:02.3]} 21... Nh6 {[%clk 0:01:21.1]} 22. Be3 {[%clk 0:02:01.5]} 22... Rfc8
{[%clk 0:01:15.3]} 23. Qd2 {[%clk 0:01:57.3]} 23... Bxd4 {[%clk 0:01:14.3]} 24.
Bxd4 {[%clk 0:01:52.4]} 24... Qxa4 {[%clk 0:01:12.8]} 25. Ra1 {[%clk 0:01:50.7]}
25... Qd7 {[%clk 0:01:12.6]} 26. Ra6 {[%clk 0:01:50.2]} 26... Rc6 {[%clk
0:01:09.3]} 27. Rfa1 {[%clk 0:01:48.4]} 27... Rxa6 {[%clk 0:01:09.1]} 28. Rxa6
{[%clk 0:01:49.3]} 28... Nf7 {[%clk 0:01:09.6]} 29. Qa5 {[%clk 0:01:45.9]} 29...
h5 {[%clk 0:01:02.6]} 30. e3 {[%clk 0:01:36.2]} 30... Kh7 {[%clk 0:00:49.3]} 31.
Bf1 {[%clk 0:01:33.8]} 31... h4 {[%clk 0:00:37.9]} 32. gxh4 {[%clk 0:01:09.7]}
32... Nd8 {[%clk 0:00:36.6]} 33. Rxa7 {[%clk 0:01:02.9]} 33... Rxa7 {[%clk
0:00:36]} 34. Qxa7 {[%clk 0:01:03.8]} 34... Qe8 {[%clk 0:00:35.5]} 35. Kh2
{[%clk 0:00:53.1]} 35... Bg8 {[%clk 0:00:24.9]} 36. Qa8 {[%clk 0:00:47.8]} 36...
Qd7 {[%clk 0:00:23.2]} 37. Qa7 {[%clk 0:00:42.6]} 37... Qe8 {[%clk 0:00:19.3]}
38. e6 {[%clk 0:00:35.6]} 38... Nxe6 {[%clk 0:00:19.4]} 39. Be5 {[%clk
0:00:36.3]} 39... Qh5 {[%clk 0:00:18.9]} 40. Bg2 {[%clk 0:00:24.5]} 40... Qxh4
{[%clk 0:00:17.5]} 41. Qb6 {[%clk 0:00:20.9]} 41... Qf2 {[%clk 0:00:15.3]} 42.
Qa7 {[%clk 0:00:17.6]} 42... Kh6 {[%clk 0:00:12.7]} 43. Qa8 {[%clk 0:00:16.1]}
43... Kh7 {[%clk 0:00:11.5]} 44. Qa7 {[%clk 0:00:15.1]} 44... Qd2 {[%clk
0:00:05.2]} 45. Kg3 {[%clk 0:00:10.6]} 45... Kg6 {[%clk 0:00:03.4]} 46. Qb6
{[%clk 0:00:08.6]} 46... Bf7 {[%clk 0:00:02.5]} 47. Kh2 {[%clk 0:00:07.7]} 47...
Qf2 {[%clk 0:00:02.1]} 48. Qa7 {[%clk 0:00:07.4]} 48... d4 {[%clk 0:00:01.7]}
49. Bxd4 {[%clk 0:00:05.2]} 49... Nxd4 {[%clk 0:00:01.8]} 50. Qxd4 {[%clk
0:00:06.1]} 50... Kh7 {[%clk 0:00:02.2]} 51. Qc5 {[%clk 0:00:05.7]} 51... Bg6
{[%clk 0:00:02.3]} 52. Qd4 {[%clk 0:00:04.6]} 52... Bh5 {[%clk 0:00:02.5]} 53.
Qc5 {[%clk 0:00:04.5]} 53... Bg6 {[%clk 0:00:01.6]} 54. Qd4 {[%clk 0:00:04.8]}
54... Qh4 {[%clk 0:00:01.9]} 55. Qc5 {[%clk 0:00:05.2]} 55... Qf6 {[%clk
0:00:02.2]} 56. Qc1 {[%clk 0:00:05]} 56... Bh5 {[%clk 0:00:02.4]} 57. Qe1 {[%clk
0:00:05.5]} 57... Qh6 {[%clk 0:00:02.7]} 58. Qg3 {[%clk 0:00:05.7]} 58... Qf6
{[%clk 0:00:03.2]} 59. Qf2 {[%clk 0:00:06]} 59... g6 {[%clk 0:00:03.8]} 60. Qd2
{[%clk 0:00:05.9]} 60... Kh6 {[%clk 0:00:04.3]} 61. Bf1 {[%clk 0:00:05.9]} 61...
g5 {[%clk 0:00:04.6]} 62. Qf2 {[%clk 0:00:05.3]} 62... g4 {[%clk 0:00:04.1]} 63.
hxg4 {[%clk 0:00:06.2]} 63... Bxg4 {[%clk 0:00:04.1]} 64. Bh3 {[%clk 0:00:06.4]}
64... Bxh3 {[%clk 0:00:04.2]} 65. Kxh3 {[%clk 0:00:07.3]} 65... Qg6 {[%clk
0:00:04.6]} 66. Qh4+ {[%clk 0:00:07.7]} 66... Qh5 {[%clk 0:00:04.5]} 67. Kg3
{[%clk 0:00:07.3]} 67... Qxh4+ {[%clk 0:00:04.7]} 68. Kxh4 {[%clk 0:00:08.2]}
68... Kg6 {[%clk 0:00:05.6]} 69. Kh3 {[%clk 0:00:08.8]} 69... Kh5 {[%clk
0:00:06.1]} 70. Kg3 {[%clk 0:00:09.7]} 70... Kh6 {[%clk 0:00:06.8]} 71. Kh4
{[%clk 0:00:10.3]} 71... Kg6 {[%clk 0:00:07.4]} 72. Kh3 {[%clk 0:00:11.2]} 72...
Kh5 {[%clk 0:00:07.5]} 73. Kg3 {[%clk 0:00:12.1]} 73... Kh6 {[%clk 0:00:07.1]}
74. Kh4 {[%clk 0:00:13]} 1/2-1/2

[Event "Early-Titled-Tuesday-Blitz-February-27-2024"]
[Site "Chess.com"]
[Date "2024.02.27"]
[Round "9"]
[White "arnash_bauyrzhan"]
[Black "ricaurtelopezj1955"]
[Result "1-0"]
[WhiteElo "2291"]
[BlackElo "2161"]
[TimeControl "180+1"]
[EndTime "9:46:31 PST"]
[Termination "arnash_bauyrzhan won on time"]

1. e4 {[%clk 0:03:00.9]} 1... e5 {[%clk 0:02:57.6]} 2. Nf3 {[%clk 0:03:00.5]}
2... Nc6 {[%clk 0:02:54.7]} 3. d4 {[%clk 0:03:00.3]} 3... exd4 {[%clk
0:02:52.4]} 4. Bc4 {[%clk 0:03:00.3]} 4... Nf6 {[%clk 0:02:48.4]} 5. O-O {[%clk
0:03:00.1]} 5... Be7 {[%clk 0:02:39]} 6. e5 {[%clk 0:02:58.6]} 6... Ng4 {[%clk
0:02:31.8]} 7. Bf4 {[%clk 0:02:55.2]} 7... d6 {[%clk 0:02:26.9]} 8. exd6 {[%clk
0:02:41]} 8... cxd6 {[%clk 0:02:24.5]} 9. h3 {[%clk 0:02:31.8]} 9... Nge5 {[%clk
0:02:18.4]} 10. Bb5 {[%clk 0:02:29.9]} 10... O-O {[%clk 0:02:14]} 11. Nxd4
{[%clk 0:02:19]} 11... Nxd4 {[%clk 0:02:00.3]} 12. Qxd4 {[%clk 0:02:19.9]} 12...
Bf6 {[%clk 0:01:59.4]} 13. Qd2 {[%clk 0:02:07]} 13... Qb6 {[%clk 0:01:52.5]} 14.
Nc3 {[%clk 0:01:44.6]} 14... Bxh3 {[%clk 0:01:31.4]} 15. Bxe5 {[%clk 0:01:40.4]}
15... Bxe5 {[%clk 0:01:30.2]} 16. gxh3 {[%clk 0:01:38.3]} 16... Bxc3 {[%clk
0:01:28.5]} 17. bxc3 {[%clk 0:01:28.5]} 17... Qxb5 {[%clk 0:01:27.5]} 18. Qxd6
{[%clk 0:01:11.7]} 18... Rad8 {[%clk 0:01:25]} 19. Qb4 {[%clk 0:01:04.9]} 19...
Qd7 {[%clk 0:01:14.5]} 20. Kh2 {[%clk 0:01:02.6]} 20... b6 {[%clk 0:01:12.6]}
21. Rg1 {[%clk 0:00:57.5]} 21... Rfe8 {[%clk 0:01:04.5]} 22. Rg3 {[%clk
0:00:22.4]} 22... Re2 {[%clk 0:00:59.9]} 23. Qf4 {[%clk 0:00:22.2]} 23... Qd6
{[%clk 0:00:53.9]} 24. Qxd6 {[%clk 0:00:05.7]} 24... Rxd6 {[%clk 0:00:50.8]} 25.
Kg2 {[%clk 0:00:03.7]} 25... Rxc2 {[%clk 0:00:46.9]} 26. Re1 {[%clk 0:00:03.2]}
26... Kf8 {[%clk 0:00:41.3]} 27. Rge3 {[%clk 0:00:02]} 27... Re6 {[%clk
0:00:41.1]} 28. a4 {[%clk 0:00:02.5]} 28... Rxe3 {[%clk 0:00:37.9]} 29. Rxe3
{[%clk 0:00:03.2]} 29... Ra2 {[%clk 0:00:36.2]} 30. Re4 {[%clk 0:00:03.1]} 30...
Ra3 {[%clk 0:00:36]} 31. Rc4 {[%clk 0:00:03.3]} 31... Ke7 {[%clk 0:00:35.5]} 32.
Rc7+ {[%clk 0:00:03.4]} 32... Ke6 {[%clk 0:00:35.5]} 33. Rxa7 {[%clk 0:00:03.8]}
33... Rxc3 {[%clk 0:00:35.1]} 34. Rb7 {[%clk 0:00:04.3]} 34... Rc6 {[%clk
0:00:33.5]} 35. Kf3 {[%clk 0:00:03.5]} 35... h5 {[%clk 0:00:32.7]} 36. Ke3
{[%clk 0:00:03.6]} 36... g5 {[%clk 0:00:32.3]} 37. Ra7 {[%clk 0:00:03.6]} 37...
f5 {[%clk 0:00:31.4]} 38. a5 {[%clk 0:00:03.9]} 38... h4 {[%clk 0:00:24.9]} 39.
a6 {[%clk 0:00:03.5]} 39... Rc3+ {[%clk 0:00:24.4]} 40. Ke2 {[%clk 0:00:03.9]}
40... Ra3 {[%clk 0:00:24.3]} 41. Ra8 {[%clk 0:00:04.1]} 41... Ke5 {[%clk
0:00:22.3]} 42. a7 {[%clk 0:00:03.9]} 42... Kf4 {[%clk 0:00:22.8]} 43. Rb8
{[%clk 0:00:03.5]} 43... Rxa7 {[%clk 0:00:21.3]} 44. Rxb6 {[%clk 0:00:04.1]}
44... Ra3 {[%clk 0:00:19]} 45. Rb4+ {[%clk 0:00:04.3]} 45... Ke5 {[%clk
0:00:18.8]} 46. Rb5+ {[%clk 0:00:04.7]} 46... Kf6 {[%clk 0:00:18.4]} 47. Rb6+
{[%clk 0:00:05.3]} 47... Kg7 {[%clk 0:00:18]} 48. Rb7+ {[%clk 0:00:05.3]} 48...
Kg6 {[%clk 0:00:18.1]} 49. Rb6+ {[%clk 0:00:05.7]} 49... Kh5 {[%clk 0:00:18.5]}
50. Rb5 {[%clk 0:00:06.3]} 50... Rxh3 {[%clk 0:00:15.9]} 51. Rxf5 {[%clk
0:00:06.3]} 51... Kg4 {[%clk 0:00:16.2]} 52. Rf8 {[%clk 0:00:05.8]} 52... Ra3
{[%clk 0:00:15.1]} 53. f3+ {[%clk 0:00:04.8]} 53... Kg3 {[%clk 0:00:14.1]} 54.
Rg8 {[%clk 0:00:04.3]} 54... Ra5 {[%clk 0:00:11.5]} 55. Ke3 {[%clk 0:00:03.5]}
55... h3 {[%clk 0:00:10.3]} 56. f4 {[%clk 0:00:03.9]} 56... h2 {[%clk
0:00:09.5]} 57. Rh8 {[%clk 0:00:02.4]} 57... gxf4+ {[%clk 0:00:09]} 58. Ke4
{[%clk 0:00:02.3]} 58... Rg5 {[%clk 0:00:03.1]} 59. Kd3 {[%clk 0:00:01.1]} 59...
f3 {[%clk 0:00:02]} 60. Ke3 {[%clk 0:00:01.1]} 60... Kg2 {[%clk 0:00:01.3]} 61.
Kf4 {[%clk 0:00:01.8]} 1-0

[Event "Early-Titled-Tuesday-Blitz-February-27-2024"]
[Site "Chess.com"]
[Date "2024.02.27"]
[Round "9"]
[White "jcibarra"]
[Black "Evgeny81"]
[Result "1/2-1/2"]
[WhiteElo "2940"]
[BlackElo "2777"]
[TimeControl "180+1"]
[EndTime "9:46:33 PST"]
[Termination "Game drawn by repetition"]

1. e4 {[%clk 0:03:00.9]} 1... c5 {[%clk 0:02:59]} 2. Nf3 {[%clk 0:03:00.9]} 2...
e6 {[%clk 0:02:59.4]} 3. d3 {[%clk 0:03:00.6]} 3... Nc6 {[%clk 0:02:58]} 4. g3
{[%clk 0:03:00.6]} 4... d5 {[%clk 0:02:55.4]} 5. Qe2 {[%clk 0:03:00.2]} 5...
Nge7 {[%clk 0:02:53.5]} 6. h4 {[%clk 0:02:59.2]} 6... b6 {[%clk 0:02:49.8]} 7.
h5 {[%clk 0:02:57.8]} 7... h6 {[%clk 0:02:49.5]} 8. Bg2 {[%clk 0:02:57.2]} 8...
Bb7 {[%clk 0:02:47.5]} 9. O-O {[%clk 0:02:56.6]} 9... Qd7 {[%clk 0:02:45.2]} 10.
a4 {[%clk 0:02:47.7]} 10... O-O-O {[%clk 0:02:44]} 11. exd5 {[%clk 0:02:22.5]}
11... Nxd5 {[%clk 0:02:41.1]} 12. Nbd2 {[%clk 0:02:13.3]} 12... Be7 {[%clk
0:02:38.3]} 13. Nc4 {[%clk 0:02:13.3]} 13... Bf6 {[%clk 0:02:37.9]} 14. a5
{[%clk 0:02:13.5]} 14... b5 {[%clk 0:02:31.7]} 15. a6 {[%clk 0:02:13.8]} 15...
Ba8 {[%clk 0:02:32]} 16. Nce5 {[%clk 0:02:14.2]} 16... Nxe5 {[%clk 0:02:30.5]}
17. Nxe5 {[%clk 0:02:14.9]} 17... Qc7 {[%clk 0:02:13.8]} 18. Ng4 {[%clk
0:01:57.9]} 18... Bc6 {[%clk 0:02:10.5]} 19. c4 {[%clk 0:01:53.6]} 19... bxc4
{[%clk 0:02:02.4]} 20. dxc4 {[%clk 0:01:52.2]} 20... Nb4 {[%clk 0:02:02]} 21.
Bf4 {[%clk 0:01:52]} 21... Qb6 {[%clk 0:02:00.6]} 22. Ne5 {[%clk 0:01:32]} 22...
Bxe5 {[%clk 0:01:56.4]} 23. Qxe5 {[%clk 0:01:31.3]} 23... Nd3 {[%clk 0:01:56.5]}
24. Qe3 {[%clk 0:01:30.1]} 24... Bxg2 {[%clk 0:01:51.7]} 25. Kxg2 {[%clk
0:01:27.7]} 25... e5 {[%clk 0:01:35.9]} 26. Qe4 {[%clk 0:01:09.7]} 26... exf4
{[%clk 0:01:32.4]} 27. Rfd1 {[%clk 0:01:05.7]} 27... Rhe8 {[%clk 0:01:19.8]} 28.
Qf3 {[%clk 0:00:59.8]} 28... Ne5 {[%clk 0:01:11.8]} 29. Qxf4 {[%clk 0:00:44.9]}
29... Qc6+ {[%clk 0:01:08.4]} 30. Kh3 {[%clk 0:00:43.8]} 30... f6 {[%clk
0:00:58.4]} 31. Rxd8+ {[%clk 0:00:14.4]} 31... Rxd8 {[%clk 0:00:58.3]} 32. Qf5+
{[%clk 0:00:15.2]} 32... Qd7 {[%clk 0:00:57.8]} 33. Qxd7+ {[%clk 0:00:14.3]}
33... Rxd7 {[%clk 0:00:57.8]} 34. b3 {[%clk 0:00:11.8]} 34... Kc7 {[%clk
0:00:47.2]} 35. f4 {[%clk 0:00:10.6]} 35... Nf3 {[%clk 0:00:45.1]} 36. Kg4
{[%clk 0:00:09.4]} 36... Nd4 {[%clk 0:00:44.6]} 37. Rb1 {[%clk 0:00:04.5]} 37...
f5+ {[%clk 0:00:43.9]} 38. Kh3 {[%clk 0:00:04.5]} 38... Nc6 {[%clk 0:00:33.3]}
39. Re1 {[%clk 0:00:04]} 39... Re7 {[%clk 0:00:33]} 40. Rd1 {[%clk 0:00:04.2]}
40... Nb4 {[%clk 0:00:26.3]} 41. g4 {[%clk 0:00:02.2]} 41... fxg4+ {[%clk
0:00:09]} 42. Kxg4 {[%clk 0:00:02.4]} 42... Nxa6 {[%clk 0:00:09.9]} 43. Kf5
{[%clk 0:00:02.6]} 43... Nb4 {[%clk 0:00:08.8]} 44. Kg6 {[%clk 0:00:02.8]} 44...
a5 {[%clk 0:00:08.4]} 45. f5 {[%clk 0:00:03.2]} 45... Nc6 {[%clk 0:00:08]} 46.
f6 {[%clk 0:00:03]} 46... gxf6 {[%clk 0:00:08]} 47. Kxh6 {[%clk 0:00:03]} 47...
Re3 {[%clk 0:00:07.4]} 48. Kg6 {[%clk 0:00:02.9]} 48... Rxb3 {[%clk 0:00:07]}
49. Rh1 {[%clk 0:00:02.4]} 49... Rg3+ {[%clk 0:00:07.1]} 50. Kxf6 {[%clk
0:00:02.6]} 50... Rf3+ {[%clk 0:00:07]} 51. Kg7 {[%clk 0:00:02.6]} 51... Rg3+
{[%clk 0:00:07.1]} 52. Kf6 {[%clk 0:00:03.1]} 52... Rf3+ {[%clk 0:00:05.8]} 53.
Kg7 {[%clk 0:00:03.4]} 53... Ne5 {[%clk 0:00:06]} 54. h6 {[%clk 0:00:03.8]}
54... Rf7+ {[%clk 0:00:06.2]} 55. Kg8 {[%clk 0:00:03.9]} 55... Rd7 {[%clk
0:00:06.1]} 56. h7 {[%clk 0:00:04.2]} 56... Nf7 {[%clk 0:00:06.1]} 57. Rf1
{[%clk 0:00:03.7]} 57... Nh6+ {[%clk 0:00:06.2]} 58. Kh8 {[%clk 0:00:04.2]}
58... a4 {[%clk 0:00:05.7]} 59. Ra1 {[%clk 0:00:02.5]} 59... Nf7+ {[%clk
0:00:04]} 60. Kg8 {[%clk 0:00:02.9]} 60... Nh6+ {[%clk 0:00:03.7]} 61. Kh8
{[%clk 0:00:03.4]} 61... Rd8+ {[%clk 0:00:03.9]} 62. Kg7 {[%clk 0:00:03.7]}
62... Nf5+ {[%clk 0:00:04.2]} 63. Kf6 {[%clk 0:00:04.3]} 63... Ne3 {[%clk
0:00:03.6]} 64. Rxa4 {[%clk 0:00:04.3]} 64... Kb6 {[%clk 0:00:04]} 65. Kg7
{[%clk 0:00:03.8]} 65... Rd7+ {[%clk 0:00:04.2]} 66. Kg6 {[%clk 0:00:04.2]}
66... Rd8 {[%clk 0:00:04.4]} 67. Kg7 {[%clk 0:00:04.4]} 67... Nf5+ {[%clk
0:00:04.7]} 68. Kf6 {[%clk 0:00:05.1]} 68... Nd6 {[%clk 0:00:04.3]} 69. Ke7
{[%clk 0:00:04.6]} 69... Rh8 {[%clk 0:00:03.2]} 70. Kxd6 {[%clk 0:00:04.4]}
70... Rxh7 {[%clk 0:00:03.8]} 71. Ra1 {[%clk 0:00:03.8]} 71... Rh6+ {[%clk
0:00:03.9]} 72. Kd5 {[%clk 0:00:04.4]} 72... Rh5+ {[%clk 0:00:03.6]} 73. Kd6
{[%clk 0:00:05]} 73... Rh6+ {[%clk 0:00:03.7]} 74. Kd5 {[%clk 0:00:05.6]} 74...
Rh5+ {[%clk 0:00:04.3]} 75. Kd6 {[%clk 0:00:06.1]} 75... Rh6+ {[%clk 0:00:04.9]}
1/2-1/2

[Event "Early-Titled-Tuesday-Blitz-February-27-2024"]
[Site "Chess.com"]
[Date "2024.02.27"]
[Round "9"]
[White "Pelusiansky"]
[Black "LiamPutnam2008"]
[Result "0-1"]
[WhiteElo "2597"]
[BlackElo "2791"]
[TimeControl "180+1"]
[EndTime "9:46:34 PST"]
[Termination "LiamPutnam2008 won on time"]

1. d4 {[%clk 0:03:00.9]} 1... Nf6 {[%clk 0:02:59.4]} 2. c4 {[%clk 0:03:01]} 2...
g6 {[%clk 0:02:59.4]} 3. Nc3 {[%clk 0:02:59.2]} 3... Bg7 {[%clk 0:02:59.8]} 4.
e4 {[%clk 0:02:59.5]} 4... d6 {[%clk 0:03:00.4]} 5. Nge2 {[%clk 0:03:00.1]} 5...
O-O {[%clk 0:03:01.1]} 6. Ng3 {[%clk 0:03:00.4]} 6... Nc6 {[%clk 0:03:00.9]} 7.
d5 {[%clk 0:03:00.3]} 7... Ne5 {[%clk 0:02:59.5]} 8. Be2 {[%clk 0:03:00.7]} 8...
c6 {[%clk 0:02:50.6]} 9. O-O {[%clk 0:03:00.2]} 9... cxd5 {[%clk 0:02:50.8]} 10.
cxd5 {[%clk 0:02:59.6]} 10... Bd7 {[%clk 0:02:47.8]} 11. Be3 {[%clk 0:02:47.1]}
11... Qa5 {[%clk 0:02:42.5]} 12. h3 {[%clk 0:02:30.4]} 12... Rfc8 {[%clk
0:02:36.5]} 13. Qb3 {[%clk 0:02:30.4]} 13... Rab8 {[%clk 0:02:31.5]} 14. f4
{[%clk 0:02:23.1]} 14... Neg4 {[%clk 0:02:03.4]} 15. hxg4 {[%clk 0:02:19]} 15...
Nxg4 {[%clk 0:02:04.3]} 16. Bxg4 {[%clk 0:02:18.6]} 16... Bxg4 {[%clk
0:02:05.2]} 17. Rac1 {[%clk 0:02:08.6]} 17... b5 {[%clk 0:01:58.8]} 18. Nce2
{[%clk 0:02:04.2]} 18... h5 {[%clk 0:01:56.1]} 19. Nd4 {[%clk 0:01:51.3]} 19...
h4 {[%clk 0:01:50.5]} 20. Nh1 {[%clk 0:01:35.9]} 20... Bd7 {[%clk 0:01:21]} 21.
Nf2 {[%clk 0:01:30.5]} 21... Qa6 {[%clk 0:01:03.7]} 22. a3 {[%clk 0:00:59.3]}
22... Qb7 {[%clk 0:00:57.9]} 23. Qd3 {[%clk 0:00:51.9]} 23... Rc4 {[%clk
0:00:55.9]} 24. b3 {[%clk 0:00:47.2]} 24... Rc5 {[%clk 0:00:53.4]} 25. Nc2
{[%clk 0:00:40.8]} 25... Rc3 {[%clk 0:00:52.4]} 26. Qd2 {[%clk 0:00:41.1]} 26...
Rxb3 {[%clk 0:00:50.7]} 27. Bd4 {[%clk 0:00:41]} 27... Bxd4 {[%clk 0:00:47.5]}
28. Qxd4 {[%clk 0:00:38.4]} 28... Rc8 {[%clk 0:00:46.9]} 29. Ne3 {[%clk
0:00:31.1]} 29... Rxa3 {[%clk 0:00:44.6]} 30. f5 {[%clk 0:00:24.2]} 30... Rxc1
{[%clk 0:00:36.3]} 31. Rxc1 {[%clk 0:00:24]} 31... Qb6 {[%clk 0:00:37.2]} 32.
Qxb6 {[%clk 0:00:20.7]} 32... axb6 {[%clk 0:00:38.1]} 33. Neg4 {[%clk
0:00:19.4]} 33... gxf5 {[%clk 0:00:28.1]} 34. exf5 {[%clk 0:00:20.3]} 34... Kg7
{[%clk 0:00:27.7]} 35. Rc7 {[%clk 0:00:17.7]} 35... Bxf5 {[%clk 0:00:27.5]} 36.
Rxe7 {[%clk 0:00:17.8]} 36... b4 {[%clk 0:00:26.8]} 37. Ne3 {[%clk 0:00:14.1]}
37... Bg6 {[%clk 0:00:25.4]} 38. Nc4 {[%clk 0:00:14.1]} 38... Rc3 {[%clk
0:00:21.9]} 39. Nxb6 {[%clk 0:00:11]} 39... b3 {[%clk 0:00:22.2]} 40. Na4 {[%clk
0:00:11.5]} 40... Rc1+ {[%clk 0:00:20.5]} 41. Kh2 {[%clk 0:00:11.3]} 41... Rc2
{[%clk 0:00:21.4]} 42. Rb7 {[%clk 0:00:10.5]} 42... Rxf2 {[%clk 0:00:21.4]} 43.
Rxb3 {[%clk 0:00:09.3]} 43... Be4 {[%clk 0:00:22]} 44. Kh3 {[%clk 0:00:07.6]}
44... Bxg2+ {[%clk 0:00:21.1]} 45. Kxh4 {[%clk 0:00:07.9]} 45... Bxd5 {[%clk
0:00:21.8]} 46. Rg3+ {[%clk 0:00:08.3]} 46... Kf8 {[%clk 0:00:22]} 47. Nc3
{[%clk 0:00:09.2]} 47... Rh2+ {[%clk 0:00:21.8]} 48. Kg5 {[%clk 0:00:09.4]}
48... Be6 {[%clk 0:00:21.5]} 49. Ne4 {[%clk 0:00:08.8]} 49... Ke7 {[%clk
0:00:21.6]} 50. Re3 {[%clk 0:00:08.2]} 50... Rg2+ {[%clk 0:00:21.7]} 51. Kf4
{[%clk 0:00:08.7]} 51... Rg4+ {[%clk 0:00:22]} 52. Kf3 {[%clk 0:00:09.3]} 52...
Rh4 {[%clk 0:00:22.6]} 53. Ng3 {[%clk 0:00:09.5]} 53... Kf6 {[%clk 0:00:22.2]}
54. Ne4+ {[%clk 0:00:09.6]} 54... Kg6 {[%clk 0:00:20.8]} 55. Ng3 {[%clk
0:00:10.5]} 55... Bd5+ {[%clk 0:00:20.5]} 56. Kf2 {[%clk 0:00:09.5]} 56... Rf4+
{[%clk 0:00:21.1]} 57. Kg1 {[%clk 0:00:09.4]} 57... Be6 {[%clk 0:00:21]} 58. Ne2
{[%clk 0:00:09.6]} 58... Rg4+ {[%clk 0:00:21.2]} 59. Kf2 {[%clk 0:00:10.3]}
59... d5 {[%clk 0:00:22]} 60. Ra3 {[%clk 0:00:09.8]} 60... Re4 {[%clk
0:00:20.3]} 61. Ng3 {[%clk 0:00:09.5]} 61... Re5 {[%clk 0:00:19.4]} 62. Ne2
{[%clk 0:00:09.8]} 62... Kf5 {[%clk 0:00:18.6]} 63. Rf3+ {[%clk 0:00:10]} 63...
Kg5 {[%clk 0:00:18.4]} 64. Rg3+ {[%clk 0:00:10.1]} 64... Kf6 {[%clk 0:00:18.5]}
65. Nd4 {[%clk 0:00:09.1]} 65... Re4 {[%clk 0:00:18.3]} 66. Ne2 {[%clk
0:00:06.6]} 66... Bg4 {[%clk 0:00:17.3]} 67. Nc3 {[%clk 0:00:05.9]} 67... Rf4+
{[%clk 0:00:17.6]} 68. Ke3 {[%clk 0:00:06.5]} 68... Ke5 {[%clk 0:00:17.9]} 69.
Kd3 {[%clk 0:00:02.6]} 69... Bf5+ {[%clk 0:00:17.6]} 70. Kd2 {[%clk 0:00:02.9]}
70... d4 {[%clk 0:00:18]} 71. Ne2 {[%clk 0:00:03.6]} 71... Rf2 {[%clk
0:00:18.2]} 72. Ke1 {[%clk 0:00:03.7]} 72... Rh2 {[%clk 0:00:18.3]} 73. Rf3
{[%clk 0:00:04.2]} 73... d3 {[%clk 0:00:18.2]} 74. Nf4 {[%clk 0:00:03.8]} 74...
d2+ {[%clk 0:00:17.7]} 75. Kd1 {[%clk 0:00:04.4]} 75... Bg4 {[%clk 0:00:18.3]}
76. Nd3+ {[%clk 0:00:04.6]} 76... Ke4 {[%clk 0:00:18]} 77. Nf2+ {[%clk
0:00:05.1]} 77... Kxf3 {[%clk 0:00:17.9]} 78. Nxg4 {[%clk 0:00:05.6]} 78... Kxg4
{[%clk 0:00:18.5]} 0-1